fUSD/lending_fUSD_20250823
["ID","MTS","AMOUNT","RATE_DAILY","PERIOD"]
[381019932,1755948672679,-492.17,0.00014246,2]
[381019933,1755948672690,-400.0,0.00014246,2]
[381019934,1755948672699,-400.0,0.00014246,2]
[381019935,1755948672708,-536.93,0.00014246,2]
[381019936,1755948672718,-1497.4,0.00014246,2]
[381019937,1755948672728,-547.27,0.00014246,2]
[381019938,1755948672738,-570.52,0.00014246,2]
[381019939,1755948672747,-603.24,0.00014246,2]
[381019940,1755948672757,-1953.03,0.00014246,2]
[381019941,1755948672766,-1657.83,0.00014246,2]
[381019942,1755948672775,-861.01,0.00014246,2]
[381019943,1755948672785,-400.0,0.00014246,2]
[381019944,1755948672794,-400.0,0.00014246,2]
[381019945,1755948672884,-173.105734,0.00014246,2]
[381019946,1755948672895,-637.65,0.00014246,2]
[381019947,1755948672905,-568.53,0.00014246,2]
[381019948,1755948672914,-1436.07,0.00014246,2]
[381019949,1755948672923,-173.105734,0.00014246,2]
[381019950,1755948672933,-173.105734,0.00014246,2]
[381019951,1755948672942,-400.0,0.00014246,2]
[381019952,1755948672951,-967.42,0.00014246,2]
[381019953,1755948672961,-422.19,0.00014246,2]
[381019954,1755948672970,-173.105734,0.00014246,2]
[381019955,1755948672980,-400.0,0.00014246,2]
[381019956,1755948672990,-566.84,0.00014246,2]
[381019957,1755948673002,-400.0,0.00014246,2]
[381019958,1755948673017,-800.12,0.00014246,2]
[381019959,1755948673026,-151.0,0.00014246,2]
[381019960,1755948673035,-400.0,0.00014246,2]
[381019961,1755948673045,-857.1,0.00014246,2]
[381019962,1755948673055,-400.0,0.00014246,2]
[381019963,1755948673064,-400.0,0.00014246,2]
[381019964,1755948673073,-180.755778,0.00014246,2]
[381019965,1755948673084,-499.81,0.00014246,2]
[381019966,1755948673095,-2920.03,0.00014246,2]
[381019967,1755948673104,-977.63,0.00014246,2]
[381019968,1755948673115,-1078.78,0.00014246,2]
[381019969,1755948673124,-714.34,0.00014246,2]
[381019970,1755948673135,-400.0,0.00014246,2]
[381019971,1755948673144,-400.0,0.00014246,2]
[381019972,1755948673154,-400.0,0.00014246,2]
[381019973,1755948673163,-151.0,0.00014246,2]
[381019974,1755948673172,-663.16,0.00014246,2]
[381019975,1755948673182,-207.077595,0.00014246,2]
[381019976,1755948673191,-151.0,0.00014246,2]
[381019977,1755948673201,-819.4,0.00014246,2]
[381019978,1755948673210,-699.48,0.00014246,2]
[381019979,1755948673220,-998.32,0.00014246,2]
[381019980,1755948673230,-479.71,0.00014246,2]
[381019981,1755948673240,-400.0,0.00014246,2]
[381019982,1755948673249,-151.0,0.00014246,2]
[381019983,1755948673258,-409.56,0.00014246,2]
[381019984,1755948673268,-3020.82,0.00014246,2]
[381019985,1755948673277,-404.77,0.00014246,2]
[381019986,1755948673285,-151.0,0.00014246,2]
[381019987,1755948673295,-1464.47,0.00014246,2]
[381019988,1755948673304,-151.0,0.00014246,2]
[381019989,1755948673313,-151.0,0.00014246,2]
[381019990,1755948673322,-465.56,0.00014246,2]
[381019991,1755948673331,-400.0,0.00014246,2]
[381019992,1755948673341,-400.0,0.00014246,2]
[381019993,1755948673350,-400.0,0.00014246,2]
[381019994,1755948673360,-748.46,0.00014246,2]
[381019995,1755948673369,-1128.21,0.00014246,2]
[381019996,1755948673378,-400.0,0.00014246,2]
[381019997,1755948673388,-688.25,0.00014246,2]
[381019998,1755948673398,-2772.39,0.00014246,2]
[381019999,1755948673407,-400.0,0.00014246,2]
[381020000,1755948673416,-400.0,0.00014246,2]
[381020001,1755948673426,-796.94,0.00014246,2]
[381020002,1755948673436,-639.35,0.00014246,2]
[381020003,1755948673448,-400.0,0.00014246,2]
[381020004,1755948673458,-400.0,0.00014246,2]
[381020005,1755948673468,-347.32799156,0.00014246,2]
[381020006,1755948673478,-1477.55,0.00014246,2]
[381020007,1755948673488,-1304.11,0.00014246,2]
[381020008,1755948673497,-1024.59,0.00014246,2]
[381020009,1755948673506,-400.0,0.00014246,2]
[381020010,1755948673516,-400.0,0.00014246,2]
[381020011,1755948673525,-638.91,0.00014246,2]
[381020012,1755948673535,-582.5,0.00014246,2]
[381020013,1755948673544,-730.78,0.00014246,2]
[381020014,1755948673554,-400.0,0.00014246,2]
[381020015,1755948673563,-400.0,0.00014246,2]
[381020016,1755948673572,-400.0,0.00014246,2]
[381020017,1755948673582,-541.75,0.00014246,2]
[381020018,1755948673591,-730.64,0.00014246,2]
[381020019,1755948673600,-1139.43,0.00014246,2]
[381020020,1755948673609,-220.916835,0.00014246,2]
[381020021,1755948673619,-400.0,0.00014246,2]
[381020022,1755948673629,-612.48,0.00014246,2]
[381020023,1755948673638,-530.09,0.00014246,2]
[381020024,1755948673648,-699.34,0.00014246,2]
[381020025,1755948673657,-220.916835,0.00014246,2]
[381020026,1755948673667,-507.14,0.00014246,2]
[381020027,1755948673676,-400.0,0.00014246,2]
[381020028,1755948673686,-772.41,0.00014246,2]
[381020029,1755948673695,-220.916835,0.00014246,2]
[381020030,1755948673705,-220.916835,0.00014246,2]
[381020031,1755948673714,-9706.77,0.00014246,2]
[381020032,1755948673724,-151.0,0.00014246,2]
[381020033,1755948673732,-963.83,0.00014246,2]
[381020034,1755948673742,-961.17,0.00014246,2]
[381020035,1755948673751,-661.31,0.00014246,2]
[381020036,1755948673760,-1284.41,0.00014246,2]
[381020037,1755948673769,-151.0,0.00014246,2]
[381020038,1755948673778,-400.0,0.00014246,2]
[381020039,1755948673787,-1000.0,0.00014246,2]
[381020040,1755948673796,-883.07,0.00014246,2]
[381020041,1755948673805,-688.22,0.00014246,2]
[381020042,1755948673814,-439.29,0.00014246,2]
[381020043,1755948673823,-400.0,0.00014246,2]
[381020044,1755948673832,-400.0,0.00014246,2]
[381020045,1755948673842,-982.54,0.00014246,2]
[381020046,1755948673851,-705.44,0.00014246,2]
[381020047,1755948673860,-400.0,0.00014246,2]
[381020048,1755948673869,-151.0,0.00014246,2]
[381020049,1755948673878,-400.0,0.00014246,2]
[381020050,1755948673887,-2469.87,0.00014246,2]
[381020051,1755948673896,-500.57,0.00014246,2]
[381020052,1755948673905,-12000.0,0.00014246,2]
[381020053,1755948673914,-244.72141,0.00014246,2]
[381020054,1755948673925,-12000.0,0.00014246,2]
[381020055,1755948673934,-400.0,0.00014246,2]
[381020056,1755948673943,-877.98,0.00014246,2]
[381020057,1755948673952,-569.45,0.00014246,2]
[381020058,1755948673962,-12000.0,0.00014246,2]
[381020059,1755948673971,-400.0,0.00014246,2]
[381020060,1755948673981,-380.458615,0.00014246,2]
[381020061,1755948673990,-894.16,0.00014246,2]
[381020062,1755948674003,-521.91710554,0.00014246,2]
[381020063,1755948674015,-12000.0,0.00014246,2]
[381020064,1755948674024,-380.458615,0.00014246,2]
[381020065,1755948674033,-151.0,0.00014246,2]
[381020066,1755948674043,-12000.0,0.00014246,2]
[381020067,1755948674053,-448.18,0.00014246,2]
[381020068,1755948674062,-380.458615,0.00014246,2]
[381020069,1755948674072,-4953.74,0.00014246,2]
[381020070,1755948674083,-715.83,0.00014246,2]
[381020071,1755948674093,-12000.0,0.00014246,2]
[381020072,1755948674103,-380.458615,0.00014246,2]
[381020073,1755948674113,-1681.06,0.00014246,2]
[381020074,1755948674122,-954.45,0.00014246,2]
[381020075,1755948674132,-12000.0,0.00014246,2]
[381020076,1755948674142,-837.37,0.00014246,2]
[381020077,1755948674151,-871.68,0.00014246,2]
[381020078,1755948674162,-400.0,0.00014246,2]
[381020079,1755948674171,-151.0,0.00014246,2]
[381020080,1755948674181,-1234.25,0.00014246,2]
[381020081,1755948674190,-487.52,0.00014246,2]
[381020082,1755948674200,-157.163232,0.00014246,2]
[381020083,1755948674210,-400.0,0.00014246,2]
[381020084,1755948674219,-575.59,0.00014246,2]
[381020085,1755948674230,-151.0,0.00014246,2]
[381020086,1755948674240,-400.0,0.00014246,2]
[381020087,1755948674249,-781.72,0.00014246,2]
[381020088,1755948674258,-1597.952904,0.00014246,2]
[381020089,1755948674268,-554.92,0.00014246,2]
[381020090,1755948674278,-1597.952904,0.00014246,2]
[381020091,1755948674287,-400.0,0.00014246,2]
[381020092,1755948674297,-1597.952904,0.00014246,2]
[381020093,1755948674307,-151.0,0.00014246,2]
[381020094,1755948674316,-1339.05,0.00014246,2]
[381020095,1755948674325,-400.0,0.00014246,2]
[381020096,1755948674335,-1597.952904,0.00014246,2]
[381020097,1755948674344,-976.98,0.00014246,2]
[381020098,1755948674354,-813.03,0.00014246,2]
[381020099,1755948674364,-775.88,0.00014246,2]
[381020100,1755948674373,-2259.71,0.00014246,2]
[381020101,1755948674383,-3173.62,0.00014246,2]
[381020102,1755948674392,-1580.78,0.00014246,2]
[381020103,1755948674401,-400.0,0.00014246,2]
[381020104,1755948674411,-400.0,0.00014246,2]
[381020105,1755948674420,-601.23,0.00014246,2]
[381020106,1755948674429,-2228.7,0.00014246,2]
[381020107,1755948674440,-400.0,0.00014246,2]
[381020108,1755948674449,-400.0,0.00014246,2]
[381020109,1755948674458,-782.18,0.00014246,2]
[381020110,1755948674468,-2549.39,0.00014246,2]
[381020111,1755948674477,-151.0,0.00014246,2]
[381020112,1755948674487,-764.67,0.00014246,2]
[381020113,1755948674497,-400.0,0.00014246,2]
[381020114,1755948674506,-1180.12,0.00014246,2]
[381020115,1755948674515,-278.439002,0.00014246,2]
[381020116,1755948674525,-1678.03,0.00014246,2]
[381020117,1755948674535,-400.0,0.00014246,2]
[381020118,1755948674544,-995.33,0.00014246,2]
[381020119,1755948674554,-400.0,0.00014246,2]
[381020120,1755948674563,-974.58,0.00014246,2]
[381020121,1755948674572,-400.0,0.00014246,2]
[381020122,1755948674582,-807.4,0.00014246,2]
[381020123,1755948674593,-4335.37,0.00014246,2]
[381020124,1755948674603,-746.06,0.00014246,2]
[381020125,1755948674612,-1071.01,0.00014246,2]
[381020126,1755948674622,-400.0,0.00014246,2]
[381020127,1755948674631,-798.87,0.00014246,2]
[381020128,1755948674640,-1376.34,0.00014246,2]
[381020129,1755948674650,-151.0,0.00014246,2]
[381020130,1755948674659,-640.2,0.00014246,2]
[381020131,1755948674668,-1159.22,0.00014246,2]
[381020132,1755948674678,-151.0,0.00014246,2]
[381020133,1755948674688,-837.53,0.00014246,2]
[381020134,1755948674698,-585.37,0.00014246,2]
[381020135,1755948674707,-843.79,0.00014246,2]
[381020136,1755948674717,-151.0,0.00014246,2]
[381020137,1755948674726,-1025.49,0.00014246,2]
[381020138,1755948674736,-151.0,0.00014246,2]
[381020139,1755948674745,-401.74,0.00014246,2]
[381020140,1755948674755,-400.0,0.00014246,2]
[381020141,1755948674764,-732.26,0.00014246,2]
[381020142,1755948674774,-151.0,0.00014246,2]
[381020143,1755948674784,-527.05,0.00014246,2]
[381020144,1755948674793,-899.9,0.00014246,2]
[381020145,1755948674803,-1172.0,0.00014246,2]
[381020146,1755948674812,-12359.08,0.00014246,2]
[381020147,1755948674821,-400.0,0.00014246,2]
[381020148,1755948674831,-2779.54,0.00014246,2]
[381020149,1755948674841,-400.0,0.00014246,2]
[381020150,1755948674850,-400.0,0.00014246,2]
[381020151,1755948674859,-890.11,0.00014246,2]
[381020152,1755948674869,-909.47,0.00014246,2]
[381020153,1755948674879,-664.59,0.00014246,2]
[381020154,1755948674888,-685.52,0.00014246,2]
[381020155,1755948674897,-735.83,0.00014246,2]
[381020156,1755948674906,-151.0,0.00014246,2]
[381020157,1755948674916,-400.0,0.00014246,2]
[381020158,1755948674926,-469.74,0.00014246,2]
[381020159,1755948674936,-220.403461,0.00014246,2]
[381020160,1755948674946,-561.99,0.00014246,2]
[381020161,1755948674957,-518.63,0.00014246,2]
[381020162,1755948674966,-457.58,0.00014246,2]
[381020163,1755948674976,-562.49,0.00014246,2]
[381020164,1755948674986,-648.07,0.00014246,2]
[381020165,1755948674997,-658.03,0.00014246,2]
[381020166,1755948675010,-603.06,0.00014246,2]
[381020167,1755948675020,-400.0,0.00014246,2]
[381020168,1755948675030,-724.39,0.00014246,2]
[381020169,1755948675041,-151.0,0.00014246,2]
[381020170,1755948675050,-400.0,0.00014246,2]
[381020171,1755948675060,-749.58,0.00014246,2]
[381020172,1755948675070,-400.0,0.00014246,2]
[381020173,1755948675079,-400.0,0.00014246,2]
[381020174,1755948675089,-466.46,0.00014246,2]
[381020175,1755948675099,-743.95,0.00014246,2]
[381020176,1755948675111,-559.51,0.00014246,2]
[381020177,1755948675121,-400.0,0.00014246,2]
[381020178,1755948675131,-752.12,0.00014246,2]
[381020179,1755948675141,-499.8,0.00014246,2]
[381020180,1755948675150,-762.43,0.00014246,2]
[381020181,1755948675160,-637.51,0.00014246,2]
[381020182,1755948675170,-725.9,0.00014246,2]
[381020183,1755948675179,-439.08,0.00014246,2]
[381020184,1755948675188,-434.7,0.00014246,2]
[381020185,1755948675198,-400.0,0.00014246,2]
[381020186,1755948675208,-630.87,0.00014246,2]
[381020187,1755948675218,-591.23,0.00014246,2]
[381020188,1755948675228,-1042.8,0.00014246,2]
[381020189,1755948675238,-454.94,0.00014246,2]
[381020190,1755948675247,-400.0,0.00014246,2]
[381020191,1755948675257,-567.06,0.00014246,2]
[381020192,1755948675266,-669.75,0.00014246,2]
[381020193,1755948675276,-400.0,0.00014246,2]
[381020194,1755948675286,-476.79,0.00014246,2]
[381020195,1755948675295,-400.0,0.00014246,2]
[381020196,1755948675304,-400.0,0.00014246,2]
[381020197,1755948675321,-581.79,0.00014246,2]
[381020198,1755948675333,-400.0,0.00014246,2]
[381020199,1755948675351,-890.12,0.00014246,2]
[381020200,1755948675360,-400.0,0.00014246,2]
[381020201,1755948675370,-400.0,0.00014246,2]
[381020202,1755948675379,-400.0,0.00014246,2]
[381020203,1755948675388,-1307.02,0.00014246,2]
[381020204,1755948675398,-460.84,0.00014246,2]
[381020205,1755948675407,-679.22,0.00014246,2]
[381020206,1755948675417,-927.1,0.00014246,2]
[381020207,1755948675427,-378.63321229,0.00014246,2]
[381020208,1755948675436,-706.79,0.00014246,2]
[381020209,1755948675445,-1594.64,0.00014246,2]
[381020210,1755948675455,-400.0,0.00014246,2]
[381020211,1755948675464,-597.73,0.00014246,2]
[381020212,1755948675474,-1219.14,0.00014246,2]
[381020213,1755948675483,-459.11,0.00014246,2]
[381020214,1755948675492,-400.0,0.00014246,2]
[381020215,1755948675501,-620.72,0.00014246,2]
[381020216,1755948675511,-1795.75,0.00014246,2]
[381020217,1755948675520,-481.27,0.00014246,2]
[381020218,1755948675530,-683.45,0.00014246,2]
[381020219,1755948675540,-2728.497295,0.00014246,2]
[381020220,1755948675549,-400.0,0.00014246,2]
[381020221,1755948675559,-400.0,0.00014246,2]
[381020222,1755948675569,-2728.497295,0.00014246,2]
[381020223,1755948675579,-400.0,0.00014246,2]
[381020224,1755948675588,-2728.497295,0.00014246,2]
[381020225,1755948675600,-589.91,0.00014246,2]
[381020226,1755948675610,-400.0,0.00014246,2]
[381020227,1755948675620,-568.82,0.00014246,2]
[381020228,1755948675630,-980.33,0.00014246,2]
[381020229,1755948675640,-400.0,0.00014246,2]
[381020230,1755948675650,-776.79,0.00014246,2]
[381020231,1755948675659,-400.0,0.00014246,2]
[381020232,1755948675669,-1014.43,0.00014246,2]
[381020233,1755948675678,-400.0,0.00014246,2]
[381020234,1755948675689,-2728.497295,0.00014246,2]
[381020235,1755948675700,-540.67,0.00014246,2]
[381020236,1755948675710,-1348.8,0.00014246,2]
[381020237,1755948675720,-746.0,0.00014246,2]
[381020238,1755948675730,-151.0,0.00014246,2]
[381020239,1755948675740,-578.22,0.00014246,2]
[381020240,1755948675749,-400.0,0.00014246,2]
[381020241,1755948675759,-400.0,0.00014246,2]
[381020242,1755948675769,-151.0,0.00014246,2]
[381020243,1755948675779,-400.0,0.00014246,2]
[381020244,1755948675788,-7034.14,0.00014246,2]
[381020245,1755948675797,-400.0,0.00014246,2]
[381020246,1755948675807,-427.72,0.00014246,2]
[381020247,1755948675816,-406.32,0.00014246,2]
[381020248,1755948675826,-1017.71,0.00014246,2]
[381020249,1755948675836,-4480.06,0.00014246,2]
[381020250,1755948675845,-2558.510066,0.00014246,2]
[381020251,1755948675855,-910.19,0.00014246,2]
[381020252,1755948675866,-500.97,0.00014246,2]
[381020253,1755948675877,-400.0,0.00014246,2]
[381020254,1755948675887,-151.0,0.00014246,2]
[381020255,1755948675896,-1352.51,0.00014246,2]
[381020256,1755948675906,-400.0,0.00014246,2]
[381020257,1755948675915,-2558.510066,0.00014246,2]
[381020258,1755948675924,-1176.37,0.00014246,2]
[381020259,1755948675933,-400.0,0.00014246,2]
[381020260,1755948675943,-400.0,0.00014246,2]
[381020261,1755948675952,-459.89,0.00014246,2]
[381020262,1755948675961,-400.0,0.00014246,2]
[381020263,1755948675971,-543.26,0.00014246,2]
[381020264,1755948675980,-400.0,0.00014246,2]
[381020265,1755948675990,-603.57,0.00014246,2]
[381020266,1755948676000,-150.0,0.00014246,2]
[381020267,1755948676015,-400.0,0.00014246,2]
[381020268,1755948676024,-400.0,0.00014246,2]
[381020269,1755948676034,-151.0,0.00014246,2]
[381020270,1755948676043,-400.0,0.00014246,2]
[381020271,1755948676054,-483.64,0.00014246,2]
[381020272,1755948676063,-400.0,0.00014246,2]
[381020273,1755948676074,-400.0,0.00014246,2]
[381020274,1755948676085,-400.0,0.00014246,2]
[381020275,1755948676096,-2558.510066,0.00014246,2]
[381020276,1755948676106,-151.0,0.00014246,2]
[381020277,1755948676117,-2729.83,0.00014246,2]
[381020278,1755948676127,-2558.510066,0.00014246,2]
[381020279,1755948676137,-618.61,0.00014246,2]
[381020280,1755948676146,-400.0,0.00014246,2]
[381020281,1755948676155,-2025.9,0.00014246,2]
[381020282,1755948676164,-1476.68,0.00014246,2]
[381020283,1755948676173,-480.75,0.00014246,2]
[381020284,1755948676183,-477.15,0.00014246,2]
[381020285,1755948676192,-400.0,0.00014246,2]
[381020286,1755948676202,-876.51,0.00014246,2]
[381020287,1755948676211,-400.0,0.00014246,2]
[381020288,1755948676221,-400.0,0.00014246,2]
[381020289,1755948676231,-648.09,0.00014246,2]
[381020290,1755948676240,-300.0,0.00014247,2]
[381020291,1755948676250,-200.0,0.00014254,2]
[381020292,1755948676260,-200.0,0.00014254,2]
[381020293,1755948676269,-433.0,0.00014255,2]
[381020294,1755948676280,-209.0,0.0001427,2]
[381020295,1755948676290,-500.0,0.00014273,2]
[381020296,1755948676300,-500.0,0.00014273,2]
[381020297,1755948676311,-500.0,0.00014273,2]
[381020298,1755948676321,-500.0,0.00014273,2]
[381020299,1755948676331,-500.0,0.00014273,2]
[381020300,1755948676340,-500.0,0.00014273,2]
[381020301,1755948676349,-500.0,0.00014273,2]
[381020302,1755948676358,-500.0,0.00014273,2]
[381020303,1755948676368,-500.0,0.00014273,2]
[381020304,1755948676377,-500.0,0.00014273,2]
[381020305,1755948676387,-500.0,0.00014273,2]
[381020306,1755948676398,-500.0,0.00014273,2]
[381020307,1755948676407,-1814.31,0.00014275,2]
[381020308,1755948676416,-3008.0,0.00014291,2]
[381020309,1755948676426,-179.68,0.00014301,2]
[381020310,1755948676435,-152.0,0.00014317,2]
[381020311,1755948676445,-152.0,0.00014317,2]
[381020312,1755948676454,-152.0,0.00014317,2]
[381020313,1755948676464,-152.0,0.00014317,2]
[381020314,1755948676474,-152.0,0.00014317,2]
[381020315,1755948676483,-152.0,0.00014317,2]
[381020316,1755948676492,-176.55411186,0.00014317,2]
[381020317,1755948676504,-170.00674333,0.00014318,2]
[381020318,1755948676513,-3008.0,0.00014322,2]
[381020319,1755948676524,-3482.0,0.00014361,2]
[381020320,1755948676535,-1000.0,0.00014375,2]
[381020321,1755948676555,-3161.71,0.00014384,2]
[381020322,1755948676568,-500.0,0.00014384,2]
[381020323,1755948676577,-200.0,0.00014386,2]
[381020324,1755948676587,-500.0,0.00014386,2]
[381020325,1755948676596,-150.0,0.00014386,2]
[381020326,1755948676607,-150.0,0.00014386,2]
[381020327,1755948676616,-500.0,0.00014386,2]
[381020328,1755948676626,-473.0,0.00014386,2]
[381020329,1755948676636,-1270.0,0.00014386,2]
[381020330,1755948676646,-845.0,0.00014386,2]
[381020331,1755948676655,-2310.378946,0.00014394,2]
[381020332,1755948676665,-2356.0942703,0.00014394,2]
[381020333,1755948676676,-410.85,0.00014412,2]
[381020334,1755948676687,-10000.0,0.0001444,2]
[381020335,1755948676697,-170.00674333,0.00014444,2]
[381020336,1755948676707,-4884.12189,0.0001449,2]
[381020337,1755948676716,-500.0,0.000145,2]
[381020338,1755948676726,-400.0,0.0001452,2]
[381020339,1755948676736,-400.0,0.0001452,2]
[381020340,1755948676745,-400.0,0.0001452,2]
[381020341,1755948676756,-707.26,0.0001452,2]
[381020342,1755948676765,-400.0,0.0001452,2]
[381020343,1755948676774,-400.0,0.0001452,2]
[381020344,1755948676783,-584.18,0.0001452,2]
[381020345,1755948676793,-400.0,0.0001452,2]
[381020346,1755948676803,-823.23,0.0001452,2]
[381020347,1755948676813,-591.19,0.0001452,2]
[381020348,1755948676822,-400.0,0.0001452,2]
[381020349,1755948676832,-408.16,0.0001452,2]
[381020350,1755948676841,-400.0,0.0001452,2]
[381020351,1755948676851,-400.0,0.0001452,2]
[381020352,1755948676860,-400.0,0.0001452,2]
[381020353,1755948676870,-400.0,0.0001452,2]
[381020354,1755948676881,-400.0,0.0001452,2]
[381020355,1755948676890,-400.0,0.0001452,2]
[381020356,1755948676903,-669.8,0.0001452,2]
[381020357,1755948676913,-400.0,0.0001452,2]
[381020358,1755948676925,-652.36,0.0001452,2]
[381020359,1755948676936,-400.0,0.0001452,2]
[381020360,1755948676945,-400.0,0.0001452,2]
[381020361,1755948676955,-400.0,0.0001452,2]
[381020362,1755948676964,-400.0,0.0001452,2]
[381020363,1755948676974,-400.0,0.0001452,2]
[381020364,1755948676984,-400.0,0.0001452,2]
[381020365,1755948676993,-400.0,0.0001452,2]
[381020366,1755948677004,-484.65,0.0001452,2]
[381020367,1755948677017,-718.29,0.0001452,2]
[381020368,1755948677026,-400.0,0.0001452,2]
[381020369,1755948677036,-400.0,0.0001452,2]
[381020370,1755948677158,-400.0,0.0001452,2]
[381020371,1755948677168,-400.0,0.0001452,2]
[381020372,1755948677177,-1519.72,0.0001452,2]
[381020373,1755948677186,-400.0,0.0001452,2]
[381020374,1755948677196,-1062.57,0.0001452,2]
[381020375,1755948677205,-218.87712768,0.0001452,2]
[381020376,1755948677215,-400.0,0.0001452,2]
[381020377,1755948677225,-596.19,0.0001452,2]
[381020378,1755948677235,-403.18,0.0001452,2]
[381020379,1755948677245,-400.0,0.0001452,2]
[381020380,1755948677256,-498.02,0.0001452,2]
[381020381,1755948677267,-686.0,0.0001452,2]
[381020382,1755948677276,-426.64,0.0001452,2]
[381020383,1755948677286,-671.13,0.0001452,2]
[381020384,1755948677295,-400.0,0.0001452,2]
[381020385,1755948677305,-542.91,0.0001452,2]
[381020386,1755948677314,-400.0,0.0001452,2]
[381020387,1755948677324,-400.0,0.0001452,2]
[381020388,1755948677334,-400.0,0.0001452,2]
[381020389,1755948677344,-484.52,0.0001452,2]
[381020390,1755948677353,-400.0,0.0001452,2]
[381020391,1755948677363,-655.64,0.0001452,2]
[381020392,1755948677373,-400.0,0.0001452,2]
[381020393,1755948677382,-579.14,0.0001452,2]
[381020394,1755948677392,-400.0,0.0001452,2]
[381020395,1755948677401,-400.0,0.0001452,2]
[381020396,1755948677412,-400.0,0.0001452,2]
[381020397,1755948677422,-400.0,0.0001452,2]
[381020398,1755948677431,-400.0,0.0001452,2]
[381020399,1755948677441,-400.0,0.0001452,2]
[381020400,1755948677450,-611.42,0.0001452,2]
[381020401,1755948677460,-400.0,0.0001452,2]
[381020402,1755948677469,-400.0,0.0001452,2]
[381020403,1755948677479,-434.28,0.0001452,2]
[381020404,1755948677489,-488.35,0.0001452,2]
[381020405,1755948677498,-400.0,0.0001452,2]
[381020406,1755948677507,-400.0,0.0001452,2]
[381020407,1755948677517,-578.91,0.0001452,2]
[381020408,1755948677526,-400.0,0.0001452,2]
[381020409,1755948677536,-622.06,0.0001452,2]
[381020410,1755948677546,-557.79,0.0001452,2]
[381020411,1755948677556,-400.0,0.0001452,2]
[381020412,1755948677565,-400.0,0.0001452,2]
[381020413,1755948677575,-400.0,0.0001452,2]
[381020414,1755948677584,-400.0,0.0001452,2]
[381020415,1755948677594,-446.38,0.0001452,2]
[381020416,1755948677604,-400.0,0.0001452,2]
[381020417,1755948677614,-428.94,0.0001452,2]
[381020418,1755948677623,-400.0,0.0001452,2]
[381020419,1755948677633,-400.0,0.0001452,2]
[381020420,1755948677642,-320.62009321,0.0001452,2]
[381020421,1755948677652,-400.0,0.0001452,2]
[381020422,1755948677662,-400.0,0.0001452,2]
[381020423,1755948677671,-400.0,0.0001452,2]
[381020424,1755948677680,-434.3,0.0001452,2]
[381020425,1755948677690,-697.18,0.0001452,2]
[381020426,1755948677699,-680.71,0.0001452,2]
[381020427,1755948677709,-446.05,0.0001452,2]
[381020428,1755948677718,-648.86,0.0001452,2]
[381020429,1755948677728,-477.52446247,0.0001452,2]
[381020430,1755948677738,-445.15,0.0001452,2]
[381020431,1755948677747,-1476.63,0.0001452,2]